bitfinex-derivatives/quotes_BNBF0:USTF0_20241225
["timestamp","ask_amount","ask_price","bid_price","bid_amount"]
[1735096073011,0.26095521,705.3,703.87,1.03690022]
[1735096073207,0.26095521,705.29,703.87,1.03690022]
[1735096073406,0.26095521,705.28,703.87,1.03690022]
[1735096073605,0.26095521,705.27,703.87,1.03690022]
[1735096073812,0.26095521,705.26,703.87,1.03690022]
[1735096074012,0.26095521,705.25,703.87,1.03690022]
[1735096074213,0.26095521,705.24,703.87,1.03690022]
[1735096074413,0.26095521,705.24,703.79,0.28417567]
[1735096074414,0.2610166,705.23,703.84,1.03690022]
[1735096074713,0.28359944,705.22,703.84,1.03690022]
[1735096074912,0.2610166,705.21,703.84,1.03690022]
[1735096075113,0.28360748,705.2,703.84,1.03690022]
[1735096075308,0.2610166,705.19,703.82,1.03690022]
[1735096075511,0.5446281,705.19,703.82,1.03690022]
[1735096075716,0.2610166,705.18,703.82,1.03690022]
[1735096076313,0.2610166,705.18,703.79,0.28417567]
[1735096076613,0.26100786,705.17,703.79,0.28417567]
[1735096076811,0.26100786,705.16,703.79,0.28417567]
[1735096077012,0.26100786,705.15,703.79,0.28417567]
[1735096077216,0.26100786,705.14,703.79,0.28417567]
[1735096077410,0.26100786,705.13,703.79,0.28417567]
[1735096077715,0.26100786,705.12,703.79,0.28417567]
[1735096077915,0.26100786,705.11,703.79,0.28417567]
[1735096078108,0.26100786,705.1,703.79,0.28417567]
[1735096078313,0.2836115,705.19,703.79,0.28417567]
[1735096078509,0.2609879,705.18,703.79,0.28417567]
[1735096079317,0.26098597,705.17,703.79,0.28417567]
[1735096079516,0.26098597,705.16,703.8,1.03690022]
[1735096079714,0.26098597,705.15,703.8,1.03690022]
[1735096079909,0.26098597,705.14,703.8,1.03690022]
[1735096080115,0.26098597,705.13,703.8,1.03690022]
[1735096080312,0.2836115,705.19,703.8,1.03690022]
[1735096080613,0.2836115,705.19,703.82,1.03690022]
[1735096080614,0.26098684,705.18,703.82,1.03690022]
[1735096081112,0.2836115,705.19,703.82,1.03690022]
[1735096081313,0.26098015,705.18,703.82,1.03690022]
[1735096081716,0.26098813,705.17,704.01,1.03690022]
[1735096082015,0.26098402,705.16,704.01,1.58990022]
[1735096082314,0.26098402,705.15,704.01,1.58990022]
[1735096082521,0.26098402,705.14,704.01,1.58990022]
[1735096082718,0.26098402,705.13,704.01,1.58990022]
[1735096082918,0.26098402,705.12,704.01,1.58990022]
[1735096083112,0.26098402,705.11,704.01,1.58990022]
[1735096083312,0.26098402,705.1,704.01,1.58990022]
[1735096083518,0.26098402,705.09,704.01,1.58990022]
[1735096083718,0.26098402,705.08,704.07,1.03690022]
[1735096083919,0.26100088,705.07,704.07,1.03690022]
[1735096084222,0.26099986,705.06,704.07,1.03690022]
[1735096084421,0.26099986,705.05,704.07,1.03690022]
[1735096084623,0.26099986,705.04,704.07,1.03690022]
[1735096084818,0.26099986,705.03,704.07,1.03690022]
[1735096085024,0.26099986,705.02,704.01,0.553]
[1735096085216,0.26099986,705.01,704.01,0.553]
[1735096085421,0.2836115,705.19,704.01,0.553]
[1735096085623,0.26101404,705.18,704.01,0.553]
[1735096086023,0.2836115,705.19,704.01,0.553]
[1735096090421,0.26097272,705.18,704.01,0.553]
[1735096091024,0.2836115,705.19,704.01,0.553]
[1735096091926,0.26097195,705.18,704.01,0.553]
[1735096092125,0.2836115,705.19,704.01,0.553]
[1735096096923,0.26095343,705.18,704.01,0.553]
[1735096097529,0.26093787,705.17,704.01,0.553]
[1735096097729,0.26093787,705.16,704.01,0.553]
[1735096098029,0.26093787,705.15,704.01,0.553]
[1735096098221,0.26093787,705.14,704.01,0.553]
[1735096098424,0.26093787,705.13,704.01,0.553]
[1735096098627,0.26093787,705.12,704.01,0.553]
[1735096098828,0.2836115,705.19,704.11,1.03690022]
[1735096099029,0.26092976,705.18,704.11,1.03690022]
[1735096099631,0.2836115,705.19,704.11,1.03690022]
[1735096100132,0.2836115,705.19,704.11,0.683]
[1735096101934,1.05583047,706.05,704.11,0.683]
[1735096102131,0.28327408,706.03,704.11,0.683]
[1735096102432,0.26089621,706.02,704.11,0.683]
[1735096103132,0.26090182,706.01,704.11,0.683]
[1735096103331,0.26090182,706.0,704.11,0.683]
[1735096103532,0.26090182,705.99,704.11,0.683]
[1735096103834,0.26090182,705.98,704.11,0.683]
[1735096104031,0.26090182,705.97,704.11,0.683]
[1735096104231,0.26090182,705.96,704.11,0.683]
[1735096104432,0.26090182,705.95,704.11,0.683]
[1735096104630,0.26090182,705.94,704.11,0.683]
[1735096104830,0.26090182,705.93,704.11,0.683]
[1735096105133,0.26090182,705.92,704.11,0.683]
[1735096105332,0.26090182,705.91,704.11,0.683]
[1735096105632,0.28327408,706.03,704.11,0.683]
[1735096105833,0.26089373,706.02,704.11,0.683]
[1735096106132,0.2608937,706.01,704.11,0.683]
[1735096106335,0.2608937,706.0,704.11,0.683]
[1735096106532,0.28329414,705.98,704.11,0.683]
[1735096106831,0.26089264,705.97,704.11,0.683]
[1735096107232,0.28330618,705.95,704.11,0.683]
[1735096107432,0.26089264,705.94,704.11,0.683]
[1735096108132,0.28331822,705.92,704.11,0.683]
[1735096108333,0.26089264,705.91,704.11,0.683]
[1735096108531,0.26089114,705.9,704.11,0.683]
[1735096108729,0.28333427,705.88,704.11,0.683]
[1735096109035,0.26089114,705.87,704.11,0.683]
[1735096111228,0.28333427,705.88,704.11,0.683]
[1735096111431,0.26090236,705.87,704.11,0.683]
[1735096111831,0.28334632,705.85,704.11,0.683]
[1735096112032,0.26090236,705.84,704.11,0.683]
[1735096112338,0.28335836,705.82,704.11,0.683]
[1735096112539,0.26090236,705.81,704.11,0.683]
[1735096113240,0.2833704,705.79,704.11,0.683]
[1735096113541,0.26090236,705.78,704.11,0.683]
[1735096113738,0.26090236,705.77,704.11,0.683]
[1735096114036,0.26090236,705.76,704.11,0.683]
[1735096114232,0.28339048,705.74,704.11,0.683]
[1735096114432,0.26090236,705.73,704.11,0.683]
[1735096114637,0.28340253,705.71,704.11,0.683]
[1735096114834,0.26090236,705.7,704.11,0.683]
[1735096115036,0.26090236,705.69,704.11,0.683]
[1735096115234,0.26090236,705.68,704.11,0.683]
[1735096115437,0.26090236,705.67,704.11,0.683]
[1735096115637,0.26090236,705.66,704.11,0.683]
[1735096115838,0.26090236,705.65,704.11,0.683]
[1735096116040,0.28340253,705.71,704.11,0.683]
[1735096116041,0.26090236,705.64,704.11,0.683]
[1735096116343,0.26090236,705.63,704.11,0.683]
[1735096116537,0.26090236,705.62,704.11,0.683]
[1735096116737,0.26090236,705.61,704.11,0.683]
[1735096116937,0.28340253,705.71,704.11,0.683]
[1735096116938,0.26095381,705.6,704.11,0.683]
[1735096117137,0.26095381,705.59,704.11,0.683]
[1735096117337,0.26095381,705.58,704.11,0.683]
[1735096117541,0.28340253,705.71,704.11,0.683]
[1735096117542,0.26095381,705.57,704.11,0.683]
[1735096117844,0.26095381,705.56,704.11,0.683]
[1735096118038,0.26095381,705.55,704.11,0.683]
[1735096118237,0.26095381,705.54,704.11,0.683]
[1735096118442,0.26095381,705.53,704.11,0.683]
[1735096118744,0.26095381,705.52,704.11,0.683]
[1735096118940,0.26095381,705.51,704.11,0.683]
[1735096119144,0.26095381,705.5,704.11,0.683]
[1735096119444,0.26095381,705.49,704.11,0.683]
[1735096119745,0.54444873,705.48,704.11,0.683]
[1735096119940,0.26095381,705.47,704.11,0.683]
[1735096120144,0.54445275,705.47,704.11,0.683]
[1735096120344,0.26095381,705.46,704.11,0.683]
[1735096120545,0.28350698,705.45,704.11,0.683]
[1735096120745,0.26095381,705.44,704.11,0.683]
[1735096120946,0.28351903,705.42,704.11,0.683]
[1735096121145,0.26095381,705.41,704.11,0.683]
[1735096121346,0.26095381,705.4,704.11,0.683]
[1735096121545,0.26095381,705.39,704.11,0.683]
[1735096121841,0.26095381,705.38,704.11,0.683]
[1735096122047,0.28351903,705.42,704.11,0.683]
[1735096122048,0.26095381,705.37,704.11,0.683]
[1735096122247,0.26101511,705.36,704.11,0.683]
[1735096122541,0.26101511,705.35,704.11,0.683]
[1735096122746,0.26101511,705.34,704.11,0.683]
[1735096123048,0.28355521,705.33,704.11,0.683]
[1735096123347,0.26101588,705.32,704.11,0.683]
[1735096123547,0.54457913,705.31,704.11,0.683]
[1735096123746,0.26101588,705.3,704.11,0.683]
[1735096126349,0.26101588,705.29,704.11,0.683]
[1735096126649,0.26101588,705.28,704.11,0.683]
[1735096126842,0.26101588,705.27,704.11,0.683]
[1735096127043,0.26101588,705.26,704.11,0.683]
[1735096127248,0.26101588,705.25,704.11,0.683]
[1735096127449,0.28356325,705.31,704.11,0.683]
[1735096127450,0.26101588,705.24,704.11,0.683]
[1735096127649,0.26101588,705.23,704.11,0.683]
[1735096127848,0.28356325,705.31,704.11,0.683]
[1735096127849,0.26106143,705.22,704.11,0.683]
[1735096128144,0.26106143,705.21,704.11,0.683]
[1735096128344,0.2836115,705.19,704.11,0.683]
[1735096128551,0.26106143,705.18,704.11,0.683]
[1735096128844,0.26106143,705.17,704.11,0.683]
[1735096129150,0.26106143,705.16,704.11,0.683]
[1735096129453,0.26106143,705.15,704.11,0.683]
[1735096129751,0.26106143,705.14,704.11,0.683]
[1735096129949,0.54469707,705.13,704.11,0.683]
[1735096130250,0.54470109,705.12,704.11,0.683]
[1735096130451,0.54470511,705.11,704.11,0.683]
[1735096130652,0.26106143,705.1,704.11,0.683]
[1735096130855,0.54470913,705.1,704.11,0.683]
[1735096131049,0.26106143,705.09,704.11,0.683]
[1735096131245,0.28365575,705.08,704.11,0.683]
[1735096131449,0.26113205,705.07,704.11,0.683]
[1735096131752,0.28366782,705.05,704.11,0.683]
[1735096131946,0.26113205,705.04,704.11,0.683]
[1735096132158,0.28367989,705.02,704.11,0.683]
[1735096132447,0.26113205,705.01,704.11,0.683]
[1735096132646,0.28369196,704.99,704.11,0.683]
[1735096132848,0.26113205,704.98,704.11,0.683]
[1735096133048,0.26113205,704.97,704.11,0.683]
[1735096133244,0.54483608,704.96,703.79,0.28417567]
[1735096133448,0.28371208,704.94,703.79,0.28417567]
[1735096133751,0.26113205,704.93,703.79,0.28417567]
[1735096133953,0.28372416,704.91,703.79,0.28417567]
[1735096134150,0.26113205,704.9,703.79,0.28417567]
[1735096134346,0.28372416,704.91,703.79,0.28417567]
[1735096134347,0.54486426,704.89,703.79,0.28417567]
[1735096134552,0.26113205,704.88,703.79,0.99417567]
[1735096134747,0.28373221,704.89,703.79,0.99417567]
[1735096134748,0.26113205,704.87,703.79,0.99417567]
[1735096134946,0.26113205,704.86,703.79,0.99417567]
[1735096135149,0.54488036,704.85,703.79,0.99417567]
[1735096135450,0.54488439,704.84,703.79,0.99417567]
[1735096135652,0.54488841,704.83,703.79,0.99417567]
[1735096135847,0.54489244,704.82,703.79,0.99417567]
[1735096136052,0.54489646,704.81,703.79,0.99417567]
[1735096136248,0.54496852,704.8,703.79,0.99417567]
[1735096136453,0.26120008,704.79,703.79,0.99417567]
[1735096136646,0.26120008,704.78,703.79,0.99417567]
[1735096136847,0.26120008,704.77,703.79,0.99417567]
[1735096137050,0.26120008,704.76,703.79,0.99417567]
[1735096137250,0.26120008,704.75,703.79,0.99417567]
[1735096137456,0.26120008,704.74,702.91,1.03690022]
[1735096137652,0.26120008,704.73,702.92,0.28452739]
[1735096137960,0.26120008,704.72,702.92,0.28452739]
[1735096138158,0.26120008,704.71,702.92,0.28452739]
[1735096138352,0.26120008,704.7,702.92,0.28452739]
[1735096138558,0.26120008,704.69,702.92,0.28452739]
[1735096138758,0.26120008,704.68,702.92,0.81452739]
[1735096138959,0.26120255,704.67,702.92,0.81452739]
[1735096139159,0.26120255,704.66,702.92,0.81452739]
[1735096139360,0.26120255,704.65,702.92,0.81452739]
[1735096139560,0.26120255,704.64,702.92,0.81452739]
[1735096139860,0.26119332,704.63,702.92,0.81452739]
[1735096140061,0.26119332,704.62,702.92,0.81452739]
[1735096140255,0.26119332,704.61,702.92,0.81452739]
[1735096140455,0.26119332,704.6,702.92,0.81452739]
[1735096140658,0.26119332,704.59,702.92,0.81452739]
[1735096140861,0.26119332,704.58,702.92,0.81452739]
[1735096141061,0.26119332,704.79,702.92,0.81452739]
[1735096141261,0.26119332,704.78,702.92,0.81452739]
[1735096141460,0.26119332,704.77,702.92,0.81452739]
[1735096143559,0.26116737,704.76,702.92,0.81452739]
[1735096143863,0.26116737,704.75,702.92,0.81452739]
[1735096144162,0.26116737,704.74,702.92,0.81452739]
[1735096144362,0.26116737,704.73,702.92,0.81452739]
[1735096144562,0.26116737,704.72,702.92,0.81452739]
[1735096144862,0.28377649,704.78,702.92,0.81452739]
[1735096144863,0.26116737,704.71,702.92,0.81452739]
[1735096145064,0.26116737,704.7,702.92,0.81452739]
[1735096145256,0.26116737,704.69,702.92,0.81452739]
[1735096145459,0.26116737,704.68,702.92,0.81452739]
[1735096145661,0.54498816,704.67,702.92,0.81452739]
[1735096145856,0.54499219,704.66,702.92,0.81452739]
[1735096146061,0.26116737,704.65,702.92,0.81452739]
[1735096146363,0.54503614,704.64,702.92,0.81452739]
[1735096146564,0.54504017,704.63,702.92,0.81452739]
[1735096146860,0.5450442,704.62,702.92,0.81452739]
[1735096147163,0.54506603,704.61,702.92,1.85142761]
[1735096147362,0.26122107,704.6,702.92,1.85142761]
[1735096147758,0.28385302,704.59,702.92,1.85142761]
[1735096147957,0.26122107,704.58,702.92,0.81452739]
[1735096148160,0.28386107,704.57,702.92,0.81452739]
[1735096148362,0.26122107,704.56,702.92,0.81452739]
[1735096148563,0.28386913,704.55,702.92,0.81452739]
[1735096148764,0.26122107,704.54,702.92,0.81452739]
[1735096148963,0.28387719,704.53,702.92,0.81452739]
[1735096149159,0.26126987,704.52,702.92,0.81452739]
[1735096149361,0.28388525,704.51,702.92,0.81452739]
[1735096149561,0.26126987,704.5,702.92,0.81452739]
[1735096149766,0.28389331,704.49,702.92,0.81452739]
[1735096149964,0.26126987,704.48,702.92,0.81452739]
[1735096150165,0.28389331,704.49,702.92,0.81452739]
[1735096152167,0.26124211,704.48,702.92,0.81452739]
[1735096152466,0.28390137,704.47,702.92,0.81452739]
[1735096155067,0.26122167,704.46,702.92,0.81452739]
[1735096155872,0.54512707,704.46,702.92,0.81452739]
[1735096156169,0.26122167,704.45,702.92,0.81452739]
[1735096156370,0.28391346,704.44,702.92,0.81452739]
[1735096156572,0.26122167,704.43,702.92,0.81452739]
[1735096156768,0.26122167,704.43,702.92,1.85531101]
[1735096157369,0.26125954,704.42,702.92,1.85531101]
[1735096157571,0.26125954,704.41,702.95,1.04078362]
[1735096157773,0.26125954,704.4,702.95,1.04078362]
[1735096158069,0.28391346,704.44,702.96,0.2845112]
[1735096158070,0.26125954,704.39,702.96,0.2845112]
[1735096158272,0.26125954,704.38,702.96,0.2845112]
[1735096158471,0.26125954,704.37,702.96,0.2845112]
[1735096158770,0.26125954,704.36,703.01,1.04078362]
[1735096158965,0.26125954,704.35,703.02,0.28448692]
[1735096159163,0.26125954,704.34,703.02,0.28448692]
[1735096159367,0.26125954,704.33,703.02,0.28448692]
[1735096159571,0.26125954,704.32,703.09,1.04078362]
[1735096159765,0.28391346,704.44,703.09,1.04078362]
[1735096159964,0.2612231,704.43,703.09,1.04078362]
[1735096160168,0.28391346,704.44,703.09,1.04078362]
[1735096160169,0.261226,704.42,703.09,1.04078362]
[1735096160369,0.261226,704.41,703.09,1.04078362]
[1735096160569,0.261226,704.4,703.09,1.04078362]
[1735096160771,0.261226,704.39,703.09,1.04078362]
[1735096161066,0.261226,704.38,703.16,1.04078362]
[1735096161270,0.261226,704.37,703.16,1.04078362]
[1735096161470,0.28391346,704.44,703.16,1.04078362]
[1735096161672,0.26119633,704.43,703.16,1.04078362]
[1735096161970,0.28391346,704.44,703.16,1.04078362]
[1735096162174,0.28391346,704.44,703.19,1.04078362]
[1735096163372,0.28391346,704.44,703.02,0.28448692]
[1735096163373,0.28391346,704.44,703.4,1.04078362]
[1735096164574,0.28391346,704.44,703.44,1.04078362]
[1735096164872,0.28391346,704.44,703.44,1.56778362]
[1735096165575,0.28391346,704.44,703.46,1.04078362]
[1735096167868,0.28391346,704.44,703.63,1.04078362]
[1735096168976,0.28391346,704.44,703.44,0.527]
[1735096175576,0.28391346,704.44,703.44,1.56778362]
[1735096176576,0.28391346,704.44,703.44,0.527]
[1735096197994,0.28391346,704.44,703.45,1.04078362]
[1735096198991,0.28391346,704.44,703.46,1.04078362]
[1735096199497,0.28391346,704.44,703.46,1.56278362]
[1735096199999,0.28391346,704.44,703.49,1.04078362]
[1735096201302,0.28391346,704.44,703.48,1.04078362]
[1735096202300,0.28391346,704.44,703.46,0.522]
[1735096203301,0.28391346,704.44,703.46,1.56278362]
[1735096205603,0.28391346,704.44,703.46,0.522]
[1735096220110,0.26118478,704.43,703.46,0.522]
[1735096220407,0.28391346,704.44,703.46,0.522]
[1735096220611,0.26118379,704.43,703.46,0.522]
[1735096220802,0.28391346,704.44,703.46,0.522]
[1735096222310,0.28391346,704.44,703.47,1.04078362]
[1735096223204,0.28391346,704.44,703.49,1.04078362]
[1735096223409,0.26117251,704.43,703.49,1.04078362]
[1735096223608,0.28391346,704.44,703.49,1.55878362]
[1735096223809,0.26117706,704.43,703.49,1.55878362]
[1735096225713,0.28391346,704.44,703.49,1.55878362]
[1735096227016,0.28391346,704.44,703.49,0.518]
[1735096229114,1.05538195,705.45,703.49,0.518]
[1735096229313,0.26117379,705.44,703.49,0.518]
[1735096229713,0.26117379,705.43,703.49,0.518]
[1735096230013,0.26117379,705.42,703.49,0.518]
[1735096230216,0.26117379,705.41,703.49,0.518]
[1735096230412,0.90187239,705.4,703.49,0.518]
[1735096230609,0.90187239,705.39,703.49,0.518]
[1735096230811,0.90187239,705.38,703.49,0.518]
[1735096231013,0.90187239,705.37,703.49,0.518]
[1735096231213,1.05538195,704.82,703.49,0.518]
[1735096231416,0.26117379,704.81,703.49,0.518]
[1735096231611,0.26117379,704.8,703.49,0.518]
[1735096231810,0.26117379,704.79,703.49,0.518]
[1735096232118,0.26117379,704.78,703.49,0.518]
[1735096232311,0.26117379,704.77,703.49,0.518]
[1735096232515,0.26117379,704.76,703.49,0.518]
[1735096232715,0.26117379,704.75,703.49,0.518]
[1735096233011,0.26117379,704.74,703.49,0.518]
[1735096233223,0.52391451,712.0,703.49,0.518]
[1735096233224,0.26117379,704.73,703.49,0.518]
[1735096233515,0.26117379,704.72,703.49,0.518]
[1735096233716,1.05538195,704.87,703.49,0.518]
[1735096234017,0.26126663,704.86,703.49,0.518]
[1735096234215,0.26126663,704.85,703.49,0.518]
[1735096234410,0.26126663,704.84,703.49,0.518]
[1735096234613,0.26126663,704.83,703.49,0.518]
[1735096234814,0.26126663,704.82,703.49,0.518]
[1735096235016,0.26126663,704.81,703.49,0.518]
[1735096235216,0.26126663,704.8,703.49,0.518]
[1735096235516,0.26126663,704.79,703.49,0.518]
[1735096235719,0.26126663,704.78,703.49,0.518]
[1735096236017,0.26126663,704.77,703.49,0.518]
[1735096236217,0.26126663,704.76,703.49,0.518]
[1735096236419,0.26126663,704.75,703.49,0.518]
[1735096236617,0.26126217,704.74,703.49,0.518]
[1735096236813,0.26126217,704.73,703.49,0.518]
[1735096237017,0.26126217,704.72,703.49,0.518]
[1735096237318,0.2612545,704.71,703.49,0.518]
[1735096237520,0.2612545,704.7,703.49,0.518]
[1735096237713,0.2612545,704.69,703.49,0.518]
[1735096237917,0.2612545,704.68,703.49,0.518]
[1735096238119,0.2612545,704.67,703.49,0.518]
[1735096238315,0.2612545,704.66,703.49,0.518]
[1735096238519,0.2612545,704.65,703.49,0.518]
[1735096238719,0.2612545,704.64,703.49,0.518]
[1735096238923,0.2612545,704.63,703.49,0.518]
[1735096239120,0.2612545,704.62,703.49,0.518]
[1735096239322,0.2612545,704.61,703.49,0.518]
[1735096239521,5.54766711,705.1,703.49,0.518]
[1735096239522,0.2612545,704.6,703.49,0.518]
[1735096239715,0.2612545,704.59,703.49,0.518]
[1735096239917,0.2612545,704.58,703.49,0.518]
[1735096240121,0.2612545,704.57,703.49,0.518]
[1735096240320,0.2612545,704.56,703.49,0.518]
[1735096240520,0.2612545,704.55,703.49,0.518]
[1735096240718,0.2612545,704.54,703.49,0.518]
[1735096240922,0.2612545,704.53,703.49,0.518]
[1735096241122,0.2612545,704.52,703.49,0.518]
[1735096241419,0.2612545,704.51,703.49,0.518]
[1735096241624,0.2612545,704.5,703.49,0.518]
[1735096241819,0.2612545,704.49,703.49,0.518]
[1735096242121,0.2612545,704.48,703.49,0.518]
[1735096242321,0.2612545,704.47,703.49,0.518]
[1735096242522,0.2612545,704.46,703.49,0.518]
[1735096242716,0.2612545,704.45,703.49,0.518]
[1735096242920,0.2612545,704.44,703.49,0.518]
[1735096243124,0.2612545,704.43,703.49,0.518]
[1735096243423,0.2612545,704.42,703.49,0.518]
[1735096243617,0.2612545,704.41,703.49,0.518]
[1735096243819,0.2612545,704.4,703.49,0.518]
[1735096244020,0.2612545,704.39,703.49,0.518]
[1735096244222,0.2612545,704.38,703.49,0.518]
[1735096244417,0.2612545,704.37,703.49,0.518]
[1735096244618,1.05538195,705.08,703.49,0.518]
[1735096244817,0.261258,705.07,703.49,0.518]
[1735096245023,0.261258,705.06,703.49,0.518]
[1735096245218,0.261258,705.05,703.49,0.518]
[1735096245523,0.261258,705.04,703.49,0.518]
[1735096245724,1.05538195,705.11,703.49,0.518]
[1735096245725,0.2612599,705.03,703.49,0.518]
[1735096245924,0.2612599,705.02,703.49,0.518]
[1735096246224,0.2612599,705.01,703.49,0.518]
[1735096246418,0.2612599,705.0,703.49,0.518]
[1735096246618,0.2612599,704.99,703.49,0.518]
[1735096246822,0.2612599,704.98,703.49,0.518]
[1735096247022,0.2612599,704.97,703.49,0.518]
[1735096247218,0.2612599,704.96,703.49,0.518]
[1735096247423,0.2612599,704.95,703.49,0.518]
[1735096247623,0.2612599,705.17,703.49,0.518]
[1735096247825,0.26124302,705.16,703.49,0.518]
[1735096248123,0.26124302,705.15,703.49,0.518]
[1735096248324,0.26124302,705.14,703.49,0.518]
[1735096248524,0.26124302,705.13,703.49,0.518]
[1735096248723,0.54488268,705.12,703.49,0.518]
[1735096248919,0.26124302,705.11,703.49,0.518]
[1735096250626,0.26124962,705.1,703.49,0.518]
[1735096250823,0.28363966,705.12,703.49,0.518]
[1735096250824,0.26124962,705.11,703.49,0.518]
[1735096253424,0.26123982,705.1,703.49,0.518]
[1735096253628,0.26123982,705.09,703.49,0.518]
[1735096253828,0.26123982,705.08,703.49,0.518]
[1735096254029,0.26123933,705.07,703.49,0.518]
[1735096254328,0.26123933,705.06,703.49,0.518]
[1735096254528,0.26123933,705.05,703.49,0.518]
[1735096254731,0.26123933,705.04,703.49,0.518]
[1735096254929,0.26123933,705.03,703.49,0.518]
[1735096255130,0.26123933,705.02,703.49,0.518]
[1735096255329,0.26123933,705.01,703.49,0.518]
[1735096255530,0.26123933,705.0,703.49,0.518]
[1735096255731,0.26123933,704.99,703.49,0.518]
[1735096255932,0.26123933,704.98,703.49,0.518]
[1735096256127,0.26123851,704.97,703.49,0.518]
[1735096256335,0.26123851,704.96,703.49,0.518]
[1735096256534,0.26123851,704.95,703.49,0.518]
[1735096256733,0.26123851,704.94,703.49,0.518]
[1735096256934,0.26123851,704.93,703.49,0.518]
[1735096257230,0.26123851,704.92,703.49,0.518]
[1735096257435,0.26123851,704.91,703.49,0.518]
[1735096257631,0.26123851,704.9,703.49,0.518]
[1735096257828,0.26123851,704.89,703.49,0.518]
[1735096258032,0.26123851,704.88,703.49,0.518]
[1735096258234,0.26123851,704.87,703.49,0.518]
[1735096258435,0.26123851,704.86,703.49,0.518]
[1735096258632,0.26123851,704.85,703.49,0.518]
[1735096258832,0.26126871,704.84,703.49,0.518]
[1735096259133,0.26126871,704.83,703.49,0.518]
[1735096259430,0.26126871,704.82,703.49,0.518]
[1735096259634,0.26126871,704.81,703.49,0.518]
[1735096259834,0.26126871,704.8,703.49,0.518]
[1735096260034,0.28363966,705.12,703.49,0.518]
[1735096260035,0.26126871,704.79,703.49,0.518]
[1735096260235,0.26126871,704.78,703.49,0.518]
[1735096260438,0.26126871,704.77,703.49,0.518]
[1735096260635,0.26126871,704.76,703.49,0.518]
[1735096260831,0.26126871,704.75,703.49,0.518]
[1735096261033,0.26126671,704.74,703.49,0.518]
[1735096261235,0.26126671,704.73,703.49,0.518]
[1735096261435,0.26126671,704.72,703.49,0.518]
[1735096261740,0.28363966,705.12,703.49,0.518]
[1735096261741,0.26126671,704.71,703.49,0.518]
[1735096261933,0.26127206,704.7,703.49,0.518]
[1735096262135,0.26127206,704.69,703.49,0.518]
[1735096262334,0.26127206,704.68,703.49,0.518]
[1735096262534,0.26127206,704.67,703.49,0.518]
[1735096262733,0.26127206,704.66,703.49,0.518]
[1735096263039,0.26127206,704.65,703.49,0.518]
[1735096263234,0.26127206,704.64,703.49,0.518]
[1735096263541,0.26127584,704.63,703.49,0.518]
[1735096263734,0.26127584,704.62,703.49,0.518]
[1735096263934,0.26127584,704.61,703.49,0.518]
[1735096264132,0.26127584,704.6,703.49,0.518]
[1735096264337,0.26127584,704.59,703.49,0.518]
[1735096264537,0.26127584,704.58,703.49,0.518]
[1735096264739,0.26127584,704.57,703.49,0.518]
[1735096265040,0.26127584,704.56,703.5,0.28429282]
[1735096265339,0.26127584,704.55,703.5,0.28429282]
[1735096265541,0.26127584,704.54,703.5,0.28429282]
[1735096265736,0.26127584,704.53,703.5,0.28429282]
[1735096266039,0.26127584,704.52,703.5,0.28429282]
[1735096266240,0.26127584,704.51,703.5,0.28429282]
[1735096266441,0.26127584,704.5,703.5,0.79529282]
[1735096266641,0.26127584,704.49,703.5,0.79529282]
[1735096266843,0.26127584,704.48,703.5,0.79529282]
[1735096267042,0.26127584,704.47,703.5,0.79529282]
[1735096267243,0.26127584,704.46,703.5,0.79529282]
[1735096267542,1.05538195,705.0,703.5,0.79529282]
[1735096267743,0.26122156,704.99,703.5,0.79529282]
[1735096267943,0.26122156,704.98,703.5,0.79529282]
[1735096268241,0.26122156,704.97,703.5,0.79529282]
[1735096268438,0.26122156,704.96,703.5,0.79529282]
[1735096268642,0.26122156,704.95,703.5,0.79529282]
[1735096268838,0.26122234,704.94,703.5,0.79529282]
[1735096269042,0.26122234,704.93,703.5,0.79529282]
[1735096269238,1.05538195,705.02,703.5,0.79529282]
[1735096269239,0.26122234,704.92,703.5,0.79529282]
[1735096269442,0.26122234,704.91,703.5,0.79529282]
[1735096269642,0.28363966,705.12,703.5,0.79529282]
[1735096269643,0.26122196,704.9,703.5,0.79529282]